bitfinex/quotes_BTCUSD_20251001
["timestamp","ask_amount","ask_price","bid_price","bid_amount"]
[1759328594757,0.33509909,117190.0,117180.0,0.51135759]
[1759328594758,0.08952456,117190.0,117180.0,0.51135759]
[1759328594978,0.34180456,117190.0,117180.0,0.51135759]
[1759328595328,0.08952456,117190.0,117180.0,0.51135759]
[1759328595699,0.34180456,117190.0,117180.0,0.51135759]
[1759328595968,0.08952456,117190.0,117180.0,0.51135759]
[1759328596103,0.27548456,117190.0,117180.0,0.51177759]
[1759328596497,0.00013909,117190.0,117180.0,0.51177759]
[1759328599419,0.00013909,117190.0,117180.0,0.76401759]
[1759328600892,0.00013909,117190.0,117180.0,0.51177759]
[1759328601097,0.00013909,117190.0,117180.0,0.76401759]
[1759328601304,0.00013909,117190.0,117180.0,0.51177759]
[1759328601507,0.00013909,117190.0,117180.0,0.76397759]
[1759328601917,0.00013909,117190.0,117180.0,0.76363047]
[1759328602099,0.00013909,117190.0,117180.0,0.51143047]
[1759328602345,0.00013909,117190.0,117180.0,0.76363047]
[1759328602753,0.00013909,117190.0,117180.0,0.51101047]
[1759328603004,0.00013909,117190.0,117180.0,0.76321047]
[1759328603219,0.00224909,117190.0,117180.0,0.51101047]
[1759328603404,0.00013909,117190.0,117180.0,0.51101047]
[1759328603618,0.00013909,117190.0,117180.0,0.51143047]
[1759328603839,0.00224909,117190.0,117180.0,0.51033047]
[1759328604049,0.09485456,117190.0,117180.0,0.51033047]
[1759328604258,0.09485456,117190.0,117180.0,0.51101047]
[1759328604259,0.00013909,117190.0,117180.0,0.51101047]
[1759328605409,0.00224909,117190.0,117180.0,0.51101047]
[1759328606534,0.00013909,117190.0,117180.0,0.51101047]
[1759328608028,0.00013909,117190.0,117180.0,0.51143047]
[1759328608177,0.09163456,117190.0,117180.0,0.51033047]
[1759328609023,0.09163456,117190.0,117180.0,0.51101047]
[1759328609480,0.08952456,117190.0,117180.0,1.51101047]
[1759328610028,0.09163456,117190.0,117180.0,1.51101047]
[1759328610237,0.09487456,117190.0,117180.0,1.51033047]
[1759328611073,0.25212,117200.0,117190.0,0.17066302]
[1759328611310,0.51417993,117200.0,117190.0,0.34]
[1759328611526,0.51417993,117200.0,117180.0,1.17033047]
[1759328611739,0.25989394,117190.0,117180.0,1.51033047]
[1759328611939,0.26200394,117190.0,117180.0,1.0]
[1759328612158,0.09134092,117190.0,117180.0,1.17067759]
[1759328612358,0.34346092,117190.0,117180.0,1.51067759]
[1759328613089,0.34670092,117190.0,117180.0,1.51067759]
[1759328613296,0.51736394,117190.0,117180.0,1.34]
[1759328613486,0.51736394,117190.0,117180.0,1.51067759]
[1759328614095,0.34670092,117190.0,117180.0,1.51067759]
[1759328614953,0.09458092,117190.0,117180.0,1.51067759]
[1759328615186,0.34670092,117190.0,117180.0,1.51067759]
[1759328615399,0.43542092,117190.0,117180.0,1.51067759]
[1759328616654,0.09458092,117190.0,117180.0,1.51067759]
[1759328616866,0.34346092,117190.0,117180.0,1.51277759]
[1759328617691,0.09134092,117190.0,117180.0,1.51277759]
[1759328617895,0.08923092,117190.0,117180.0,1.51595759]
[1759328618107,0.28007092,117190.0,117180.0,1.51595759]
[1759328618743,4.654e-05,117200.0,117190.0,0.51066302]
[1759328618958,0.34151201,117200.0,117190.0,0.51066302]
[1759328619163,0.34362201,117200.0,117190.0,0.51066302]
[1759328619439,0.34362201,117200.0,117190.0,0.51276302]
[1759328621079,0.09154201,117200.0,117190.0,0.51276302]
[1759328621296,0.34362201,117200.0,117190.0,0.51276302]
[1759328621514,0.09154201,117200.0,117190.0,0.51276302]
[1759328621727,0.09154201,117200.0,117190.0,0.51594302]
[1759328621728,4.654e-05,117200.0,117190.0,0.51594302]
[1759328622933,4.654e-05,117200.0,117190.0,0.76802302]
[1759328624276,4.654e-05,117200.0,117190.0,0.51594302]
[1759328625112,4.654e-05,117200.0,117190.0,0.51276302]
[1759328625318,0.00215654,117200.0,117190.0,0.51276302]
[1759328625683,4.654e-05,117200.0,117190.0,0.51276302]
[1759328625913,0.09154201,117200.0,117190.0,0.51276302]
[1759328626145,0.08943201,117200.0,117190.0,0.51276302]
[1759328626355,4.654e-05,117200.0,117190.0,0.51594302]
[1759328630798,4.654e-05,117200.0,117190.0,0.51276302]
[1759328631293,4.654e-05,117200.0,117190.0,0.51580302]
[1759328631512,4.654e-05,117200.0,117190.0,0.51276302]
[1759328631513,0.00206654,117200.0,117190.0,0.51276302]
[1759328631955,4.654e-05,117200.0,117190.0,0.51580302]
[1759328632143,0.00206654,117200.0,117190.0,0.51276302]
[1759328632373,4.654e-05,117200.0,117190.0,0.51276302]
[1759328632588,0.00206654,117200.0,117190.0,0.51276302]
[1759328633454,4.654e-05,117200.0,117190.0,0.51580302]
[1759328633926,4.654e-05,117200.0,117190.0,0.51276302]
[1759328635182,0.00206654,117200.0,117190.0,0.51276302]
[1759328635381,0.09466201,117200.0,117190.0,0.51066302]
[1759328636181,0.09145201,117200.0,117190.0,0.51273302]
[1759328636447,4.654e-05,117200.0,117190.0,0.51577302]
[1759328636988,4.654e-05,117200.0,117190.0,0.51707302]
[1759328637229,4.654e-05,117200.0,117190.0,0.5173336]
[1759328642773,4.654e-05,117200.0,117190.0,0.7691736]
[1759328643011,4.654e-05,117200.0,117190.0,0.5173336]
[1759328643212,4.654e-05,117200.0,117190.0,0.7691736]
[1759328647179,4.654e-05,117200.0,117190.0,0.82992229]
[1759328647825,4.654e-05,117200.0,117190.0,0.85553841]
[1759328648032,4.654e-05,117200.0,117190.0,0.60369841]
[1759328648330,4.654e-05,117200.0,117190.0,0.85545841]
[1759328648518,4.654e-05,117200.0,117190.0,0.60369841]
[1759328648767,4.654e-05,117200.0,117190.0,0.85545841]
[1759328649823,4.654e-05,117200.0,117190.0,0.60369841]
[1759328650033,4.654e-05,117200.0,117190.0,0.85541841]
[1759328651491,4.654e-05,117200.0,117190.0,0.60369841]
[1759328651975,0.09466201,117200.0,117190.0,0.57297229]
[1759328652196,0.09466201,117200.0,117190.0,0.1722236]
[1759328652429,0.09466201,117200.0,117190.0,0.5122236]
[1759328652696,0.26531047,117200.0,117190.0,0.00156058]
[1759328652917,0.60571047,117200.0,117190.0,0.00156058]
[1759328653801,0.58118843,117200.0,117190.0,0.00156058]
[1759328654019,0.66990843,117200.0,117190.0,0.00156058]
[1759328655310,0.32950843,117200.0,117190.0,0.00156058]
[1759328655522,0.66990843,117200.0,117190.0,0.00156058]
[1759328656548,0.73630033,117200.0,117190.0,0.00156058]
[1759328656800,0.8330061,117200.0,117190.0,0.00156058]
[1759328657179,1.1879661,117200.0,117190.0,0.00156058]
[1759328658232,1.5279661,117200.0,117190.0,1e-08]
[1759328658449,1.52799757,117200.0,117190.0,1e-08]
[1759328658668,1.5280061,117200.0,117190.0,1e-08]
[1759328659129,0.8326461,117200.0,117190.0,1e-08]
[1759328659353,1.5280061,117200.0,117190.0,1e-08]
[1759328659570,1.53246177,117200.0,117190.0,1e-08]
[1759328659789,0.17070672,117160.0,117150.0,1.0]
[1759328660005,0.60564219,117160.0,117150.0,1.0]
[1759328660254,0.54707409,117160.0,117150.0,1.0]
[1759328660471,0.29543409,117160.0,117150.0,1.0]
[1759328660700,0.63579409,117160.0,117150.0,1.0]
[1759328660923,0.63587349,117160.0,117150.0,1.0]
[1759328661132,0.54715349,117160.0,117150.0,1.0]
[1759328661362,0.60045219,117160.0,117150.0,1.0]
[1759328661581,0.60255219,117160.0,117150.0,1.0]
[1759328661805,0.60255219,117160.0,117150.0,1.17072129]
[1759328661806,0.34312547,117160.0,117150.0,1.17072129]
[1759328662032,0.242519,117160.0,117150.0,1.17282129]
[1759328662257,0.08938547,117160.0,117150.0,1.17598129]
[1759328662477,0.08938547,117160.0,117150.0,1.61598129]
[1759328662704,0.19990547,117160.0,117150.0,1.61072129]
[1759328662959,0.20200547,117160.0,117150.0,1.61072129]
[1759328663170,0.37271219,117160.0,117150.0,1.44]
[1759328663390,0.20392547,117160.0,117150.0,1.61072129]
[1759328663604,0.08938547,117160.0,117150.0,1.61598129]
[1759328663818,0.34102547,117160.0,117150.0,1.61598129]
[1759328664287,0.34102547,117160.0,117150.0,1.61072129]
[1759328664474,0.34312547,117160.0,117150.0,1.61072129]
[1759328665020,0.09148547,117160.0,117150.0,1.61072129]
[1759328665226,0.34312547,117160.0,117150.0,1.61072129]
[1759328666053,0.09148547,117160.0,117150.0,1.61072129]
[1759328666262,0.34312547,117160.0,117150.0,1.61072129]
[1759328666472,0.09148547,117160.0,117150.0,1.61282129]
[1759328666677,0.51379219,117160.0,117150.0,1.44]
[1759328666884,0.5932287,117160.0,117150.0,1.0]
[1759328667090,0.26411219,117160.0,117150.0,1.0]
[1759328667293,0.60255219,117160.0,117150.0,1.0]
[1759328667695,0.26411219,117160.0,117150.0,1.0]
[1759328667906,0.60447219,117160.0,117150.0,1.0]
[1759328668558,0.26411219,117160.0,117150.0,1.0]
[1759328668772,0.60447219,117160.0,117150.0,1.0]
[1759328670587,0.26411219,117160.0,117150.0,1.0]
[1759328670758,0.60447219,117160.0,117150.0,1.0]
[1759328670969,0.60443219,117160.0,117150.0,1.0]
[1759328671183,0.34304547,117160.0,117150.0,1.17282129]
[1759328671380,0.08938547,117160.0,117150.0,1.17598129]
[1759328671584,0.34094547,117160.0,117150.0,1.17598129]
[1759328671788,0.51363219,117160.0,117150.0,1.0]
[1759328672204,0.60041219,117160.0,117150.0,1.17598129]
[1759328672576,0.60239219,117160.0,117150.0,1.17072129]
[1759328672771,0.34094547,117160.0,117150.0,1.17598129]
[1759328673802,0.34094547,117160.0,117150.0,1.17548398]
[1759328674163,0.51165219,117160.0,117150.0,1.17548398]
[1759328674357,0.34094547,117160.0,117150.0,1.17548398]
[1759328674557,0.08938547,117160.0,117150.0,1.61548398]
[1759328674784,0.34094547,117160.0,117150.0,1.61548398]
[1759328675392,0.08938547,117160.0,117150.0,1.61548398]
[1759328675589,0.34094547,117160.0,117150.0,1.61548398]
[1759328676493,0.51165219,117160.0,117150.0,1.44476269]
[1759328676709,0.51363219,117160.0,117150.0,1.43950269]
[1759328676911,0.34094547,117160.0,117150.0,1.61232398]
[1759328677341,0.08938547,117160.0,117150.0,1.61548398]
[1759328677560,0.34090547,117160.0,117150.0,1.61548398]
[1759328678803,0.08938547,117160.0,117150.0,1.64048398]
[1759328679011,0.34086547,117160.0,117150.0,1.64048398]
[1759328679635,0.33113133,117180.0,117170.0,0.17069215]
[1759328679844,0.68193365,117180.0,117170.0,0.00013909]
[1759328681529,0.68193365,117180.0,117170.0,0.00223909]
[1759328681530,0.59318307,117180.0,117170.0,0.00223909]
[1759328681747,0.09735174,117180.0,117170.0,0.61609124]
[1759328681965,0.00796627,117180.0,117170.0,0.64109124]
[1759328682187,0.25940627,117180.0,117170.0,0.64109124]
[1759328682395,0.00796627,117180.0,117170.0,0.64109124]
[1759328683029,0.00796627,117180.0,117170.0,0.66671285]
[1759328683665,0.00796627,117180.0,117170.0,0.91815285]
[1759328684097,0.00796627,117180.0,117170.0,0.66671285]
[1759328684328,0.03936,117190.0,117180.0,1.26271132]
[1759328684553,0.33740402,117210.0,117200.0,0.17064846]
[1759328684774,0.58942949,117210.0,117200.0,0.17064846]
[1759328684975,0.15886309,117210.0,117200.0,0.17590846]
[1759328685192,0.34078547,117210.0,117200.0,0.17590846]
[1759328685809,0.51141937,117210.0,117200.0,0.17590846]
[1759328686021,0.34078547,117210.0,117200.0,0.17590846]
[1759328686633,0.08938547,117210.0,117200.0,0.17590846]
[1759328686853,0.08876,117220.0,117210.0,0.17062218]
[1759328687090,0.60012481,117220.0,117210.0,0.17588218]
[1759328687523,0.26198481,117220.0,117210.0,0.17272218]
[1759328687727,0.51334481,117220.0,117210.0,0.17272218]
[1759328687931,0.51346406,117220.0,117210.0,0.17272218]
[1759328688126,0.51346406,117220.0,117210.0,0.18171762]
[1759328688557,0.51346406,117220.0,117200.0,0.12816]
[1759328688787,0.26001937,117210.0,117200.0,0.44]
[1759328688989,0.26199937,117210.0,117200.0,0.61274846]
[1759328689187,0.26001937,117210.0,117200.0,0.61274846]
[1759328689435,0.08938547,117210.0,117200.0,0.61590846]
[1759328689798,0.17073859,117220.0,117210.0,0.1706339]
[1759328690183,0.60020406,117220.0,117210.0,0.1727339]
[1759328690366,0.60218406,117220.0,117210.0,0.1727339]
[1759328690966,0.00011925,117220.0,117210.0,0.64970028]
[1759328691214,0.25139925,117220.0,117210.0,0.64970028]
[1759328692432,0.25139925,117220.0,117210.0,0.64935316]
[1759328692857,0.42201859,117220.0,117210.0,0.64935316]
[1759328693066,0.25139925,117220.0,117210.0,0.64935316]
[1759328693838,0.25139925,117220.0,117210.0,0.30935316]
[1759328694484,0.25139925,117220.0,117210.0,0.64935316]
[1759328695390,0.42201859,117220.0,117210.0,0.64935316]
[1759328695814,0.51140406,117220.0,117210.0,0.64935316]
[1759328696036,0.34078472,117220.0,117210.0,0.64935316]
[1759328696491,0.34874373,117220.0,117210.0,0.64935316]
[1759328696898,0.51936307,117220.0,117210.0,0.64935316]
[1759328697343,0.34874373,117220.0,117210.0,0.30935316]
[1759328697559,0.51936307,117220.0,117210.0,0.30613316]
[1759328697770,0.51936307,117220.0,117210.0,0.30935316]
[1759328697989,0.34874373,117220.0,117210.0,0.30935316]
[1759328698422,0.51936307,117220.0,117210.0,0.30935316]
[1759328698895,0.51936307,117220.0,117210.0,0.64935316]
[1759328699334,0.1706339,117210.0,117200.0,0.025]
[1759328699561,0.17859291,117210.0,117200.0,0.63564846]
[1759328699726,0.00993901,117210.0,117200.0,0.63564846]
[1759328699953,0.00993901,117210.0,117200.0,0.63767846]
[1759328700165,0.00994138,117210.0,117200.0,0.63767846]
[1759328700348,0.00796138,117210.0,117200.0,0.64089846]
[1759328700553,0.08950472,117220.0,117210.0,0.6356339]
[1759328700758,0.34858606,117220.0,117210.0,0.6408839]
[1759328700953,0.09746606,117220.0,117210.0,0.6408839]
[1759328701188,0.34858606,117220.0,117210.0,0.6408839]
[1759328701580,0.34858606,117220.0,117210.0,0.64994668]
[1759328701955,0.5192054,117220.0,117210.0,0.64994668]
[1759328702506,0.34858606,117220.0,117210.0,0.64994668]
[1759328704337,0.5211854,117220.0,117210.0,0.61969668]
[1759328704562,0.35056606,117220.0,117210.0,0.61969668]
[1759328704788,0.34858606,117220.0,117210.0,0.62494668]
[1759328704997,0.34854606,117220.0,117210.0,0.62494668]
[1759328705587,0.35052606,117220.0,117210.0,0.62172668]
[1759328705751,0.34854606,117220.0,117210.0,0.62172668]
[1759328706350,0.34854606,117220.0,117210.0,0.62494668]
[1759328706577,0.00808059,117220.0,117210.0,0.64994668]
[1759328708098,0.00011925,117220.0,117210.0,0.64994668]
[1759328709666,0.00011925,117220.0,117210.0,0.90094668]
[1759328709889,0.00011925,117220.0,117210.0,0.92656002]
[1759328711251,0.00808059,117220.0,117210.0,0.92656002]
[1759328711677,0.00011925,117220.0,117210.0,0.92656002]
[1759328712516,0.00011925,117220.0,117210.0,0.67556002]
[1759328712728,0.00011925,117220.0,117210.0,0.92652002]
[1759328712951,0.00011925,117220.0,117210.0,0.67556002]
[1759328713165,0.00011925,117220.0,117210.0,0.90090668]
[1759328713841,0.00011925,117220.0,117210.0,0.64994668]
[1759328714055,0.00011925,117220.0,117210.0,0.90090668]
[1759328714478,0.00011925,117220.0,117210.0,0.80090668]
[1759328714685,0.00209925,117220.0,117210.0,0.89768668]
[1759328714899,0.00011925,117220.0,117210.0,0.89768668]
[1759328715109,0.26210406,117220.0,117210.0,0.64469668]
[1759328715746,0.09148472,117220.0,117210.0,0.64469668]
[1759328715958,0.00011925,117220.0,117210.0,0.64994668]
[1759328719256,0.00011925,117220.0,117210.0,0.76948405]
[1759328719699,0.00011925,117220.0,117210.0,0.85820405]
[1759328719915,1e-08,117220.0,117210.0,0.85820405]
[1759328721817,1e-08,117220.0,117210.0,0.76948405]
[1759328722013,1e-08,117220.0,117210.0,1.02032405]
[1759328722223,1e-08,117220.0,117210.0,0.76948405]
[1759328722426,1e-08,117220.0,117210.0,1.10904405]
[1759328723370,1e-08,117220.0,117210.0,0.76948405]
[1759328723797,1e-08,117220.0,117210.0,1.10900405]
[1759328724036,1e-08,117220.0,117210.0,0.76948405]
[1759328724248,1e-08,117220.0,117210.0,1.10900405]
[1759328724874,1e-08,117220.0,117210.0,0.76948405]
[1759328725134,1e-08,117220.0,117210.0,1.10900405]
[1759328725564,1e-08,117220.0,117210.0,1.13461225]
[1759328728656,1e-08,117220.0,117210.0,0.79509225]
[1759328729074,1e-08,117220.0,117210.0,1.13453225]
[1759328729324,1e-08,117220.0,117210.0,1.13449225]
[1759328730448,0.06897763,117250.0,117240.0,0.27059024]
[1759328730593,0.06897763,117250.0,117240.0,0.52131024]
[1759328730791,0.06897763,117250.0,117240.0,0.52340024]
[1759328731205,0.06897763,117250.0,117240.0,0.52634024]
[1759328731802,0.5013731,117270.0,117240.0,0.52634024]
[1759328731803,0.5013731,117270.0,117250.0,0.51056191]
[1759328732008,0.3484539,117270.0,117260.0,0.17056114]
[1759328732225,0.3504139,117270.0,117260.0,0.17056114]
[1759328732439,0.3504139,117270.0,117250.0,0.61056191]
[1759328732637,0.17056114,117260.0,117250.0,0.61056191]
[1759328732847,0.01194956,117260.0,117250.0,0.61056191]
[1759328733107,0.1825107,117260.0,117250.0,0.61057569]
[1759328733312,0.10133503,117260.0,117250.0,0.61057569]
[1759328733738,0.27189617,117260.0,117250.0,0.61057569]
[1759328734233,0.26985617,117260.0,117250.0,0.61057569]
[1759328734879,0.26789617,117260.0,117250.0,0.61266569]
[1759328735017,0.26985617,117260.0,117250.0,0.61266569]
[1759328735224,0.09929503,117260.0,117250.0,0.61266569]
[1759328735426,0.26985617,117260.0,117250.0,0.61266569]
[1759328735871,0.09929503,117260.0,117250.0,0.61266569]
[1759328736148,0.26985617,117260.0,117250.0,0.61266569]
[1759328737232,0.26985617,117260.0,117250.0,0.61057569]
[1759328737737,0.26986626,117260.0,117250.0,0.61057569]
[1759328737943,0.27190626,117260.0,117250.0,0.44]
[1759328738153,0.27190626,117260.0,117250.0,0.51057569]
[1759328738592,0.27190626,117260.0,117250.0,0.61057569]
[1759328738808,0.17058297,117250.0,117230.0,0.22973013]
[1759328739030,0.09142547,117250.0,117240.0,0.51059024]
[1759328739241,0.08938547,117250.0,117240.0,0.61059024]
[1759328739496,0.18164125,117270.0,117260.0,0.17056114]
[1759328739710,0.61819174,117270.0,117260.0,0.17056114]
[1759328740137,0.62023174,117270.0,117260.0,0.17056114]
[1759328740555,0.61819174,117270.0,117260.0,0.17056114]
[1759328741908,0.17056114,117260.0,117250.0,0.27056367]
[1759328742144,0.26995163,117260.0,117250.0,0.27057569]
[1759328742358,0.27191163,117260.0,117250.0,0.1]
[1759328742556,0.27191163,117260.0,117250.0,0.27057569]
[1759328743087,0.27191163,117260.0,117250.0,0.1]
[1759328743515,0.52247163,117260.0,117250.0,0.27057569]
[1759328743734,0.52043163,117260.0,117250.0,0.27057569]
[1759328744185,0.34987049,117260.0,117250.0,0.27057569]
[1759328744408,0.34791049,117260.0,117250.0,0.27266569]
[1759328744672,0.09931049,117260.0,117250.0,0.27266569]
[1759328744890,0.34791049,117260.0,117250.0,0.27266569]
[1759328745580,0.34987049,117260.0,117250.0,0.27266569]
[1759328746018,0.52043163,117260.0,117250.0,0.27266569]
[1759328746245,0.52247163,117260.0,117250.0,0.27057569]
[1759328746469,0.52243163,117260.0,117250.0,0.27057569]
[1759328746913,0.52039163,117260.0,117250.0,0.27057569]
[1759328747167,0.27191163,117260.0,117250.0,0.1]
[1759328747382,0.52039163,117260.0,117250.0,0.27057569]
[1759328748265,0.52039163,117260.0,117250.0,0.17057569]
[1759328748518,0.52039163,117260.0,117250.0,0.27057569]
[1759328748743,0.34983049,117260.0,117250.0,0.27057569]
[1759328748978,0.09931049,117260.0,117250.0,0.27057569]
[1759328749189,0.34783049,117260.0,117250.0,0.27266569]
[1759328749398,0.34979049,117260.0,117250.0,0.27266569]
[1759328749617,0.34783049,117260.0,117250.0,0.27266569]
[1759328749831,0.34979049,117260.0,117250.0,0.27266569]
[1759328750044,0.34783049,117260.0,117250.0,0.17266569]
[1759328750251,0.34783049,117260.0,117250.0,0.27560569]
[1759328750460,0.09735049,117260.0,117250.0,0.27560569]
[1759328750668,0.34783049,117260.0,117250.0,0.27560569]
[1759328750874,0.34783049,117260.0,117250.0,0.27266569]
[1759328751727,0.26989163,117260.0,117250.0,0.27266569]
[1759328751949,0.52037163,117260.0,117250.0,0.27266569]
[1759328752160,0.34981049,117260.0,117250.0,0.17266569]
[1759328752333,0.34981049,117260.0,117250.0,0.27266569]
[1759328753011,0.52037163,117260.0,117250.0,0.27057569]
[1759328753425,0.52241163,117260.0,117250.0,0.1]
[1759328753855,0.52241163,117260.0,117250.0,0.27057569]
[1759328754076,0.52241163,117260.0,117250.0,0.17057569]
[1759328754287,0.09933049,117260.0,117250.0,0.27259569]
[1759328754506,0.52033163,117260.0,117250.0,0.27057569]
[1759328754693,0.52033163,117260.0,117250.0,0.27259569]
[1759328754983,0.52033163,117260.0,117250.0,0.27057569]
[1759328755379,0.34977049,117260.0,117250.0,0.27057569]
[1759328756154,0.09933049,117260.0,117250.0,0.27259569]
[1759328756367,0.34977049,117260.0,117250.0,0.27259569]
[1759328756573,0.34779049,117260.0,117250.0,0.27259569]
[1759328757636,0.52033163,117260.0,117250.0,0.27057569]
[1759328758474,0.09933049,117260.0,117250.0,0.27057569]
[1759328758656,0.34973049,117260.0,117250.0,0.17259569]
[1759328758862,0.34973049,117260.0,117250.0,0.27259569]
[1759328759295,0.52029163,117260.0,117250.0,0.27259569]
[1759328759505,0.52029163,117260.0,117250.0,0.27057569]
[1759328759941,0.34973049,117260.0,117250.0,0.27057569]
[1759328760401,0.34973049,117260.0,117250.0,0.27259569]
[1759328760619,0.34973049,117260.0,117250.0,0.17259569]
[1759328760826,0.34973049,117260.0,117250.0,0.27259569]
[1759328761049,0.09933049,117260.0,117250.0,0.27259569]
[1759328761262,0.34973049,117260.0,117250.0,0.27259569]
[1759328761680,0.09735049,117260.0,117250.0,0.27573569]
[1759328761884,0.34775049,117260.0,117250.0,0.27573569]
[1759328762098,0.34775049,117260.0,117250.0,0.27259569]
[1759328762337,0.52029163,117260.0,117250.0,0.27057569]
[1759328764478,0.52029163,117260.0,117250.0,0.17057569]
[1759328764686,0.52029163,117260.0,117240.0,0.88595024]
[1759328764919,0.43294616,117260.0,117250.0,0.1]
[1759328765128,0.17057569,117250.0,117240.0,0.61059007]
[1759328765335,0.08938547,117260.0,117250.0,0.27057569]
[1759328765543,0.52027861,117260.0,117250.0,0.17259569]
[1759328765754,0.79131747,117260.0,117250.0,0.17057569]
[1759328765962,0.96187861,117260.0,117250.0,0.27057569]
[1759328766169,0.79131747,117260.0,117250.0,0.27057569]
[1759328766377,0.54095747,117260.0,117250.0,0.17057569]
[1759328766588,0.78332547,117260.0,117250.0,0.27259569]
[1759328767005,0.54095764,117260.0,117250.0,0.27259569]
[1759328767204,0.95384661,117260.0,117250.0,0.27259569]
[1759328767416,0.78328547,117260.0,117250.0,0.27259569]
[1759328767999,0.53098547,117260.0,117250.0,0.27573569]
[1759328768258,0.78130547,117260.0,117250.0,0.27573569]
[1759328768671,0.78130547,117260.0,117250.0,0.61573569]
[1759328769099,0.4416,117260.0,117250.0,0.64073569]
[1759328769310,0.69192,117260.0,117250.0,0.64073569]
[1759328771592,0.69188,117260.0,117250.0,0.64073569]
[1759328775330,0.69386,117260.0,117250.0,0.63759569]
[1759328775531,0.69188,117260.0,117250.0,0.63759569]
[1759328775744,0.69188,117260.0,117250.0,0.64073569]
[1759328777740,0.4416,117260.0,117250.0,0.64073569]
[1759328777961,0.00046577,117270.0,117260.0,0.63556114]
[1759328778161,0.00046577,117270.0,117260.0,0.88890114]
[1759328778335,0.00046577,117270.0,117260.0,0.89092114]
[1759328778546,0.00046577,117270.0,117260.0,0.92107304]
[1759328778751,0.00046577,117270.0,117260.0,1.07098187]
[1759328779182,0.00046577,117270.0,117260.0,0.82078187]
[1759328779482,0.00046577,117270.0,117260.0,1.15966187]
[1759328780320,0.00046577,117270.0,117260.0,0.76025851]
[1759328780889,0.00046577,117270.0,117260.0,1.09909851]
[1759328781945,0.00046577,117270.0,117260.0,0.76025851]
[1759328782154,0.00046577,117270.0,117260.0,1.03601869]
[1759328782359,0.00046577,117270.0,117260.0,1.12469869]
[1759328782570,0.00046577,117270.0,117260.0,0.78585869]
[1759328783006,0.00046577,117270.0,117260.0,1.12469869]
[1759328783229,0.00046577,117270.0,117260.0,0.78585869]
[1759328783463,0.00046577,117270.0,117260.0,1.12465869]
[1759328784573,0.00046577,117270.0,117260.0,0.78585869]
[1759328784778,0.00046577,117270.0,117260.0,0.68585869]
[1759328784978,0.00046577,117270.0,117260.0,0.81644132]
[1759328785229,0.00046577,117270.0,117260.0,0.91644132]
[1759328785435,0.00046577,117270.0,117260.0,0.57644132]
[1759328785645,0.00046577,117270.0,117260.0,0.91644132]
[1759328785866,0.00046577,117270.0,117260.0,0.57644132]
[1759328786061,0.00046577,117270.0,117260.0,0.5760942]
[1759328786265,0.00046577,117270.0,117260.0,0.6659742]
[1759328786509,0.00046577,117270.0,117260.0,0.9160542]
[1759328788557,0.00046577,117270.0,117260.0,0.97657756]
[1759328790258,0.00046577,117270.0,117260.0,0.9160542]
[1759328790493,0.00046577,117270.0,117260.0,0.6659742]
[1759328790917,0.00046577,117270.0,117260.0,0.9160142]
[1759328791323,0.00046577,117270.0,117260.0,0.6659742]
[1759328791530,0.00046577,117270.0,117260.0,0.9160142]
[1759328793216,0.00046577,117270.0,117260.0,0.6659742]
[1759328793425,0.00244577,117270.0,117260.0,0.5628342]
[1759328793652,0.00244577,117270.0,117260.0,0.5728342]
[1759328793874,0.00046577,117270.0,117260.0,0.5728342]
[1759328794096,0.00046577,117270.0,117260.0,0.9159542]
[1759328795164,0.00046577,117270.0,117260.0,0.6659542]
[1759328795370,0.00046577,117270.0,117260.0,0.8159542]
[1759328795615,0.00046577,117270.0,117260.0,0.9159542]
[1759328796062,0.00046577,117270.0,117260.0,0.6659542]
[1759328796271,0.00448577,117270.0,117260.0,0.5608142]
[1759328796494,0.00448577,117270.0,117250.0,0.19557569]
[1759328796495,0.17056114,117260.0,117250.0,0.19557569]
[1759328796719,0.17254114,117260.0,117250.0,0.29557569]
[1759328796936,0.00198,117260.0,117250.0,0.19557569]
[1759328797158,0.08985124,117270.0,117260.0,0.17056114]
[1759328797392,0.09183124,117270.0,117260.0,0.27056114]
[1759328797589,0.08985124,117270.0,117260.0,0.27261114]
[1759328797830,0.09183124,117270.0,117260.0,0.27261114]
[1759328798547,0.08985124,117270.0,117260.0,0.64073114]
[1759328799977,0.00046577,117270.0,117260.0,0.64073114]
[1759328801299,0.00046577,117270.0,117260.0,0.89069114]
[1759328801972,0.00046577,117270.0,117260.0,0.91629423]
[1759328802212,0.00046577,117270.0,117260.0,0.91625423]
[1759328803071,0.00255577,117270.0,117260.0,0.63556114]
[1759328803497,0.00255577,117270.0,117260.0,0.63761114]
[1759328803717,0.00046577,117270.0,117260.0,0.64073114]
[1759328805766,0.26441784,117270.0,117260.0,0.44]
[1759328806049,0.26441784,117270.0,117250.0,0.29557569]
[1759328806050,0.17056114,117260.0,117250.0,0.29557569]
[1759328806236,0.51231784,117270.0,117260.0,0.44]
[1759328806510,0.17056114,117260.0,117250.0,0.1]
[1759328806749,0.08938547,117260.0,117250.0,0.27057569]
[1759328806925,0.34328547,117260.0,117250.0,0.27057569]
[1759328807369,0.40645324,117260.0,117250.0,0.61057569]
[1759328807950,0.15657324,117260.0,117250.0,0.61057569]
[1759328808164,0.40645324,117260.0,117250.0,0.61057569]
[1759328808343,0.33926547,117260.0,117250.0,0.63762569]
[1759328808547,0.50957237,117270.0,117260.0,0.17056114]
[1759328808916,0.51225784,117270.0,117260.0,0.17056114]
[1759328809125,0.51429784,117270.0,117250.0,0.63557569]
[1759328809463,0.26237784,117270.0,117260.0,0.17056114]
[1759328809684,0.51225784,117270.0,117260.0,0.17056114]
[1759328809887,0.09183124,117270.0,117260.0,0.17056114]
[1759328810088,0.34171124,117270.0,117260.0,0.61261114]
[1759328810382,0.34171124,117270.0,117260.0,0.61056114]
[1759328810631,0.51225784,117270.0,117260.0,0.44]
[1759328810832,0.51225784,117270.0,117260.0,0.61056114]
[1759328811229,0.51225784,117270.0,117260.0,0.44]
[1759328811434,0.51429784,117270.0,117260.0,0.61056114]
[1759328812092,0.57726141,117270.0,117260.0,0.61056114]
[1759328812506,0.57722141,117270.0,117260.0,0.61056114]
[1759328813021,0.32738141,117270.0,117260.0,0.61056114]
[1759328813240,0.57722141,117270.0,117260.0,0.61056114]
[1759328813429,0.15479481,117270.0,117260.0,0.61056114]
[1759328813703,0.40463481,117270.0,117260.0,0.61056114]
[1759328813910,0.57518141,117270.0,117260.0,0.61056114]
[1759328814114,0.57722141,117270.0,117260.0,0.44]
[1759328814319,0.32738141,117270.0,117260.0,0.61056114]
[1759328814526,0.57722141,117270.0,117260.0,0.61056114]
[1759328815406,1.01882141,117270.0,117260.0,0.1]
[1759328815629,0.84619481,117270.0,117260.0,0.27056114]
[1759328815820,1.10542141,117270.0,117260.0,0.27056114]
[1759328816590,0.93487481,117270.0,117260.0,0.27056114]
[1759328816764,0.84619481,117270.0,117260.0,0.27056114]
[1759328816983,1.10542141,117270.0,117260.0,0.27056114]
[1759328817628,1.10542141,117270.0,117260.0,0.17056114]
[1759328817810,1.10746141,117270.0,117260.0,0.27056114]
[1759328818402,1.10746141,117270.0,117260.0,0.1]